[Event "Titled Tuesday Blitz June 21 Early 2022"]
[White "Goltseva, Ekaterina"]
[Black "Halkias, Stelios"]
[WhiteFideId "24173770"]
[BlackFideId "4201809"]
[WhiteElo "2086"]
[BlackElo "2453"]
[Result "0-1"]
[Round "10"]
[TimeControl "180+1"]
[Date "2022.06.21"]
[WhiteClock "0:00:02"]
[BlackClock "0:01:00"]

1. d4 {[%clk 0:03:00]}  Nf6 {[%clk 0:02:56]} 2. c4 {[%clk 0:02:58]}  g6 {[%clk 0:02:56]} 3. Nc3 {[%clk 0:02:57]}  Bg7 {[%clk 0:02:56]} 4. e4 {[%clk 0:02:56]}  d6 {[%clk 0:02:56]} 5. Nge2 {[%clk 0:02:57]}  O-O {[%clk 0:02:56]} 6. Ng3 {[%clk 0:02:58]}  h5 {[%clk 0:02:55]} 7. Be2 {[%clk 0:02:56]}  b5 {[%clk 0:02:48]} 8. cxb5 {[%clk 0:02:51]}  Bb7 {[%clk 0:02:48]} 9. Bf3 {[%clk 0:02:41]}  h4 {[%clk 0:02:42]} 10. Nge2 {[%clk 0:02:38]}  h3 {[%clk 0:02:41]} 11. gxh3 {[%clk 0:02:34]}  a6 {[%clk 0:02:41]} 12. bxa6 {[%clk 0:02:27]}  Nxa6 {[%clk 0:02:41]} 13. Ng3 {[%clk 0:02:17]}  Qd7 {[%clk 0:02:31]} 14. Bg2 {[%clk 0:02:13]}  c5 {[%clk 0:02:25]} 15. d5 {[%clk 0:02:00]}  Nb4 {[%clk 0:02:23]} 16. a3 {[%clk 0:01:47]}  c4 {[%clk 0:02:21]} 17. O-O {[%clk 0:01:42]}  Nd3 {[%clk 0:02:21]} 18. h4 {[%clk 0:01:26]}  Qg4 {[%clk 0:02:06]} 19. Bg5 {[%clk 0:00:33]}  Ba6 {[%clk 0:01:43]} 20. Bf3 {[%clk 0:00:22]}  Qh3 {[%clk 0:01:39]} 21. Qd2 {[%clk 0:00:18]}  Ng4 {[%clk 0:01:28]} 22. Bxg4 {[%clk 0:00:16]}  Qxg4 {[%clk 0:01:28]} 23. Bxe7 {[%clk 0:00:15]}  Rfb8 {[%clk 0:01:18]} 24. Rab1 {[%clk 0:00:12]}  Ne5 {[%clk 0:01:18]} 25. Qe2 {[%clk 0:00:06]}  Nf3+ {[%clk 0:01:03]} 26. Kh1 {[%clk 0:00:06]}  Be5 {[%clk 0:01:03]} 27. Bg5 {[%clk 0:00:03]}  Bc8 {[%clk 0:01:03]} 28. Be3 {[%clk 0:00:02]}  Bd7 {[%clk 0:01:00]} 0-1


[Site "https://www.chess.com"]

[Event "Titled Tuesday Blitz June 21 Early 2022"]
[White "Gormally, Daniel W"]
[Black "Sethuraman, S.P."]
[WhiteFideId "406465"]
[BlackFideId "5021596"]
[WhiteElo "2543"]
[BlackElo "2473"]
[Result "0-1"]
[Round "10"]
[TimeControl "180+1"]
[Date "2022.06.21"]
[WhiteClock "0:00:10"]
[BlackClock "0:00:14"]

1. e4 {[%clk 0:03:00]}  c5 {[%clk 0:02:59]} 2. Nc3 {[%clk 0:03:00]}  d6 {[%clk 0:02:58]} 3. Nf3 {[%clk 0:02:58]}  Nc6 {[%clk 0:02:57]} 4. d4 {[%clk 0:02:57]}  cxd4 {[%clk 0:02:58]} 5. Nxd4 {[%clk 0:02:58]}  Nf6 {[%clk 0:02:59]} 6. Bg5 {[%clk 0:02:58]}  e6 {[%clk 0:02:58]} 7. Qd2 {[%clk 0:02:58]}  a6 {[%clk 0:02:59]} 8. O-O-O {[%clk 0:02:58]}  Be7 {[%clk 0:02:59]} 9. f3 {[%clk 0:02:53]}  Nxd4 {[%clk 0:02:53]} 10. Qxd4 {[%clk 0:02:53]}  b5 {[%clk 0:02:52]} 11. Kb1 {[%clk 0:02:47]}  Bb7 {[%clk 0:02:51]} 12. h4 {[%clk 0:02:41]}  O-O {[%clk 0:02:46]} 13. g4 {[%clk 0:02:39]}  Qc7 {[%clk 0:02:45]} 14. Be3 {[%clk 0:02:30]}  Rfd8 {[%clk 0:02:38]} 15. g5 {[%clk 0:02:13]}  Nh5 {[%clk 0:02:37]} 16. Rg1 {[%clk 0:02:08]}  d5 {[%clk 0:02:36]} 17. e5 {[%clk 0:02:01]}  Rac8 {[%clk 0:02:35]} 18. Bd3 {[%clk 0:01:55]}  g6 {[%clk 0:02:33]} 19. Ne2 {[%clk 0:01:52]}  Ng7 {[%clk 0:02:22]} 20. Ng3 {[%clk 0:01:49]}  b4 {[%clk 0:02:18]} 21. h5 {[%clk 0:01:47]}  Bc5 {[%clk 0:01:55]} 22. Qf4 {[%clk 0:01:34]}  Bxe3 {[%clk 0:01:44]} 23. Qxe3 {[%clk 0:01:34]}  a5 {[%clk 0:01:38]} 24. hxg6 {[%clk 0:01:30]}  fxg6 {[%clk 0:01:38]} 25. Rh1 {[%clk 0:01:27]}  Qf7 {[%clk 0:01:34]} 26. Ne2 {[%clk 0:01:19]}  Rf8 {[%clk 0:01:28]} 27. Nd4 {[%clk 0:01:19]}  Qf4 {[%clk 0:01:27]} 28. Qxf4 {[%clk 0:01:01]}  Rxf4 {[%clk 0:01:28]} 29. Bb5 {[%clk 0:01:02]}  Rc7 {[%clk 0:01:23]} 30. Rh2 {[%clk 0:00:58]}  Bc8 {[%clk 0:01:14]} 31. b3 {[%clk 0:00:51]}  Nf5 {[%clk 0:01:13]} 32. Nxf5 {[%clk 0:00:49]}  Rxf5 {[%clk 0:01:13]} 33. Bd3 {[%clk 0:00:37]}  Rxg5 {[%clk 0:01:06]} 34. f4 {[%clk 0:00:33]}  Rg4 {[%clk 0:01:06]} 35. Rf2 {[%clk 0:00:32]}  Rf7 {[%clk 0:01:02]} 36. Rdf1 {[%clk 0:00:30]}  h5 {[%clk 0:01:02]} 37. Kc1 {[%clk 0:00:30]}  g5 {[%clk 0:00:49]} 38. Bg6 {[%clk 0:00:25]}  Rfxf4 {[%clk 0:00:44]} 39. Bxh5 {[%clk 0:00:22]}  Rxf2 {[%clk 0:00:37]} 40. Rxf2 {[%clk 0:00:22]}  Re4 {[%clk 0:00:36]} 41. Rf7 {[%clk 0:00:21]}  Rxe5 {[%clk 0:00:24]} 42. Ra7 {[%clk 0:00:21]}  Rf5 {[%clk 0:00:19]} 43. Rxa5 {[%clk 0:00:17]}  Kg7 {[%clk 0:00:19]} 44. Ra8 {[%clk 0:00:15]}  Rf8 {[%clk 0:00:18]} 45. a4 {[%clk 0:00:14]}  bxa3 {[%clk 0:00:17]} 46. b4 {[%clk 0:00:14]}  e5 {[%clk 0:00:16]} 47. b5 {[%clk 0:00:13]}  g4 {[%clk 0:00:17]} 48. b6 {[%clk 0:00:11]}  g3 {[%clk 0:00:17]} 49. Bf3 {[%clk 0:00:11]}  a2 {[%clk 0:00:16]} 50. Kb2 {[%clk 0:00:11]}  Rxf3 {[%clk 0:00:14]} 51. Rxc8 {[%clk 0:00:10]}  Ra3 {[%clk 0:00:14]} 0-1


[Site "https://www.chess.com"]

[Event "Titled Tuesday Blitz June 21 Early 2022"]
[White "Gubajdullin, Alexei"]
[Black "Zaloznyy, Mike"]
[WhiteFideId "4141202"]
[BlackFideId "2023075"]
[WhiteElo "2280"]
[BlackElo "2003"]
[Result "1-0"]
[Round "10"]
[TimeControl "180+1"]
[Date "2022.06.22"]
[WhiteClock "0:01:55"]
[BlackClock "0:00:04"]

1. d4 {[%clk 0:03:00]}  Nf6 {[%clk 0:02:58]} 2. Nf3 {[%clk 0:03:00]}  b6 {[%clk 0:02:46]} 3. Bf4 {[%clk 0:02:59]}  e6 {[%clk 0:02:44]} 4. e3 {[%clk 0:02:59]}  Bb7 {[%clk 0:02:44]} 5. Be2 {[%clk 0:02:59]}  Be7 {[%clk 0:02:44]} 6. O-O {[%clk 0:02:59]}  Nh5 {[%clk 0:02:42]} 7. Be5 {[%clk 0:02:57]}  d6 {[%clk 0:02:37]} 8. Bg3 {[%clk 0:02:56]}  Nxg3 {[%clk 0:02:36]} 9. hxg3 {[%clk 0:02:56]}  Nd7 {[%clk 0:02:34]} 10. a4 {[%clk 0:02:55]}  a6 {[%clk 0:02:34]} 11. a5 {[%clk 0:02:54]}  b5 {[%clk 0:02:34]} 12. c4 {[%clk 0:02:54]}  bxc4 {[%clk 0:02:24]} 13. Bxc4 {[%clk 0:02:53]}  c5 {[%clk 0:02:20]} 14. Nc3 {[%clk 0:02:53]}  cxd4 {[%clk 0:02:20]} 15. Nxd4 {[%clk 0:02:51]}  Ne5 {[%clk 0:02:16]} 16. Be2 {[%clk 0:02:50]}  O-O {[%clk 0:02:16]} 17. b4 {[%clk 0:02:41]}  Rc8 {[%clk 0:02:12]} 18. Qb3 {[%clk 0:02:37]}  Nc6 {[%clk 0:02:00]} 19. Nxc6 {[%clk 0:02:34]}  Bxc6 {[%clk 0:01:56]} 20. b5 {[%clk 0:02:34]}  axb5 {[%clk 0:01:53]} 21. Nxb5 {[%clk 0:02:34]}  Rb8 {[%clk 0:01:43]} 22. a6 {[%clk 0:02:32]}  Qb6 {[%clk 0:01:43]} 23. a7 {[%clk 0:02:28]}  Ra8 {[%clk 0:01:42]} 24. Rfb1 {[%clk 0:02:23]}  Bf6 {[%clk 0:01:32]} 25. Nd4 {[%clk 0:02:14]}  Qxb3 {[%clk 0:01:12]} 26. Rxb3 {[%clk 0:02:14]}  Bd5 {[%clk 0:00:54]} 27. Rb6 {[%clk 0:02:12]}  Rfd8 {[%clk 0:00:40]} 28. Bf3 {[%clk 0:02:10]}  Bxf3 {[%clk 0:00:22]} 29. gxf3 {[%clk 0:02:10]}  Bxd4 {[%clk 0:00:18]} 30. exd4 {[%clk 0:02:10]}  Kf8 {[%clk 0:00:18]} 31. Rb7 {[%clk 0:02:08]}  Re8 {[%clk 0:00:14]} 32. Rc1 {[%clk 0:02:07]}  Re7 {[%clk 0:00:06]} 33. Rb8+ {[%clk 0:02:03]}  Re8 {[%clk 0:00:05]} 34. Rxe8+ {[%clk 0:01:56]}  Kxe8 {[%clk 0:00:05]} 35. Rc7 {[%clk 0:01:56]}  Kf8 {[%clk 0:00:04]} 36. Rb7 {[%clk 0:01:55]} 1-0


[Site "https://www.chess.com"]

[Event "Titled Tuesday Blitz June 21 Early 2022"]
[White "Harsh Suresh"]
[Black "Hoffmann, Asa"]
[WhiteFideId "45018464"]
[BlackFideId "2001470"]
[WhiteElo "2059"]
[BlackElo "2117"]
[Result "1-0"]
[Round "10"]
[TimeControl "180+1"]
[Date "2022.06.22"]
[WhiteClock "0:00:09"]
[BlackClock "0:00:15"]

1. e4 {[%clk 0:03:00]}  d6 {[%clk 0:02:58]} 2. d4 {[%clk 0:02:58]}  Nf6 {[%clk 0:02:56]} 3. Nc3 {[%clk 0:02:59]}  c6 {[%clk 0:02:56]} 4. h3 {[%clk 0:02:58]}  e5 {[%clk 0:02:55]} 5. Nf3 {[%clk 0:02:57]}  Nbd7 {[%clk 0:02:54]} 6. Bc4 {[%clk 0:02:55]}  Be7 {[%clk 0:02:54]} 7. a4 {[%clk 0:02:51]}  O-O {[%clk 0:02:54]} 8. a5 {[%clk 0:02:49]}  a6 {[%clk 0:02:51]} 9. Be3 {[%clk 0:02:48]}  Qc7 {[%clk 0:02:50]} 10. O-O {[%clk 0:02:47]}  h6 {[%clk 0:02:49]} 11. Qe2 {[%clk 0:02:44]}  Re8 {[%clk 0:02:49]} 12. Rfd1 {[%clk 0:02:43]}  Bf8 {[%clk 0:02:49]} 13. d5 {[%clk 0:02:41]}  c5 {[%clk 0:02:47]} 14. Nh4 {[%clk 0:02:38]}  g6 {[%clk 0:02:37]} 15. Qd2 {[%clk 0:02:36]}  Kh7 {[%clk 0:02:36]} 16. Rf1 {[%clk 0:02:36]}  Bg7 {[%clk 0:02:33]} 17. Nf3 {[%clk 0:02:26]}  Ng8 {[%clk 0:02:25]} 18. g4 {[%clk 0:02:03]}  Ndf6 {[%clk 0:02:22]} 19. Nh2 {[%clk 0:01:53]}  Qe7 {[%clk 0:02:12]} 20. f4 {[%clk 0:01:42]}  exf4 {[%clk 0:02:10]} 21. Rxf4 {[%clk 0:01:43]}  Nd7 {[%clk 0:02:09]} 22. Raf1 {[%clk 0:01:38]}  Ne5 {[%clk 0:02:07]} 23. Be2 {[%clk 0:01:38]}  Bd7 {[%clk 0:02:04]} 24. Kh1 {[%clk 0:01:28]}  Rf8 {[%clk 0:02:02]} 25. Qe1 {[%clk 0:01:24]}  Bf6 {[%clk 0:02:00]} 26. Qc1 {[%clk 0:00:46]}  Rae8 {[%clk 0:01:57]} 27. Bd3 {[%clk 0:00:38]}  Bg5 {[%clk 0:01:56]} 28. R4f2 {[%clk 0:00:38]}  Nxd3 {[%clk 0:01:51]} 29. cxd3 {[%clk 0:00:38]}  f5 {[%clk 0:01:47]} 30. Bxg5 {[%clk 0:00:37]}  Qxg5 {[%clk 0:01:36]} 31. Qxg5 {[%clk 0:00:36]}  hxg5 {[%clk 0:01:36]} 32. gxf5 {[%clk 0:00:36]}  gxf5 {[%clk 0:01:35]} 33. exf5 {[%clk 0:00:35]}  Re3 {[%clk 0:01:29]} 34. Ne4 {[%clk 0:00:33]}  Rxd3 {[%clk 0:01:10]} 35. Nxg5+ {[%clk 0:00:32]}  Kg7 {[%clk 0:01:06]} 36. Ne6+ {[%clk 0:00:31]}  Bxe6 {[%clk 0:01:03]} 37. dxe6 {[%clk 0:00:31]}  Rxh3 {[%clk 0:00:57]} 38. Rg2+ {[%clk 0:00:21]}  Kh8 {[%clk 0:00:51]} 39. f6 {[%clk 0:00:16]}  Re3 {[%clk 0:00:41]} 40. e7 {[%clk 0:00:13]}  Nxe7 {[%clk 0:00:39]} 41. fxe7 {[%clk 0:00:14]}  Rxf1+ {[%clk 0:00:38]} 42. Nxf1 {[%clk 0:00:15]}  Rxe7 {[%clk 0:00:38]} 43. Rd2 {[%clk 0:00:14]}  Re6 {[%clk 0:00:37]} 44. Kg2 {[%clk 0:00:13]}  Kg7 {[%clk 0:00:36]} 45. Kf3 {[%clk 0:00:13]}  Kf6 {[%clk 0:00:36]} 46. Ne3 {[%clk 0:00:14]}  Ke7 {[%clk 0:00:36]} 47. Nd5+ {[%clk 0:00:13]}  Kd7 {[%clk 0:00:36]} 48. Nf4 {[%clk 0:00:13]}  Rh6 {[%clk 0:00:35]} 49. Ke4 {[%clk 0:00:12]}  Kc6 {[%clk 0:00:35]} 50. Nd3 {[%clk 0:00:12]}  d5+ {[%clk 0:00:34]} 51. Kf4 {[%clk 0:00:11]}  c4 {[%clk 0:00:33]} 52. Ne5+ {[%clk 0:00:11]}  Kc5 {[%clk 0:00:34]} 53. Nd7+ {[%clk 0:00:12]}  Kd6 {[%clk 0:00:32]} 54. Nb6 {[%clk 0:00:12]}  Rh4+ {[%clk 0:00:31]} 55. Kg3 {[%clk 0:00:11]}  Rh5 {[%clk 0:00:30]} 56. Kg4 {[%clk 0:00:12]}  Rh1 {[%clk 0:00:29]} 57. Rxd5+ {[%clk 0:00:10]}  Kc6 {[%clk 0:00:28]} 58. Rd4 {[%clk 0:00:10]}  Kb5 {[%clk 0:00:28]} 59. Nxc4 {[%clk 0:00:10]}  Rc1 {[%clk 0:00:25]} 60. b3 {[%clk 0:00:10]}  Rc3 {[%clk 0:00:24]} 61. Rd5+ {[%clk 0:00:10]}  Kc6 {[%clk 0:00:23]} 62. Rd3 {[%clk 0:00:07]}  Rxd3 {[%clk 0:00:21]} 63. Ne5+ {[%clk 0:00:07]}  Kb5 {[%clk 0:00:21]} 64. Nxd3 {[%clk 0:00:08]}  Kxa5 {[%clk 0:00:21]} 65. Kf4 {[%clk 0:00:09]}  b5 {[%clk 0:00:21]} 66. Ke4 {[%clk 0:00:08]}  Kb6 {[%clk 0:00:20]} 67. Kd5 {[%clk 0:00:08]}  a5 {[%clk 0:00:20]} 68. Kd6 {[%clk 0:00:08]}  b4 {[%clk 0:00:17]} 69. Nb2 {[%clk 0:00:07]}  Kb5 {[%clk 0:00:16]} 70. Na4 {[%clk 0:00:07]}  Ka6 {[%clk 0:00:16]} 71. Kc6 {[%clk 0:00:08]}  Ka7 {[%clk 0:00:15]} 72. Kb5 {[%clk 0:00:09]}  Kb7 {[%clk 0:00:15]} 73. Kxa5 {[%clk 0:00:09]} 1-0


[Site "https://www.chess.com"]

[Event "Titled Tuesday Blitz June 21 Early 2022"]
[White "Heinemann, Josefine"]
[Black "Nguyen, Quoc Hy"]
[WhiteFideId "12900460"]
[BlackFideId "12410853"]
[WhiteElo "2300"]
[BlackElo "1938"]
[Result "1/2-1/2"]
[Round "10"]
[TimeControl "180+1"]
[Date "2022.06.22"]
[WhiteClock "0:01:41"]
[BlackClock "0:00:01"]

1. e4 {[%clk 0:03:00]}  c5 {[%clk 0:02:59]} 2. Nf3 {[%clk 0:03:01]}  d6 {[%clk 0:02:58]} 3. d4 {[%clk 0:02:59]}  cxd4 {[%clk 0:02:59]} 4. Nxd4 {[%clk 0:03:00]}  Nf6 {[%clk 0:02:59]} 5. Nc3 {[%clk 0:03:01]}  e5 {[%clk 0:03:00]} 6. Bb5+ {[%clk 0:02:59]}  Nbd7 {[%clk 0:02:59]} 7. Nf5 {[%clk 0:02:58]}  a6 {[%clk 0:02:59]} 8. Bxd7+ {[%clk 0:02:58]}  Qxd7 {[%clk 0:02:59]} 9. Ne3 {[%clk 0:02:59]}  Be7 {[%clk 0:02:56]} 10. O-O {[%clk 0:02:59]}  O-O {[%clk 0:02:56]} 11. Ned5 {[%clk 0:02:59]}  Nxd5 {[%clk 0:02:56]} 12. Nxd5 {[%clk 0:02:59]}  Bd8 {[%clk 0:02:56]} 13. Be3 {[%clk 0:02:58]}  f5 {[%clk 0:02:56]} 14. exf5 {[%clk 0:02:57]}  Qxf5 {[%clk 0:02:56]} 15. c4 {[%clk 0:02:58]}  Be6 {[%clk 0:02:55]} 16. b3 {[%clk 0:02:58]}  Kh8 {[%clk 0:02:51]} 17. Qd2 {[%clk 0:02:58]}  b5 {[%clk 0:02:46]} 18. Rac1 {[%clk 0:02:55]}  Rc8 {[%clk 0:02:36]} 19. cxb5 {[%clk 0:02:52]}  axb5 {[%clk 0:02:22]} 20. a4 {[%clk 0:02:51]}  bxa4 {[%clk 0:02:15]} 21. bxa4 {[%clk 0:02:52]}  Rxc1 {[%clk 0:01:35]} 22. Rxc1 {[%clk 0:02:48]}  Qe4 {[%clk 0:01:33]} 23. Nc3 {[%clk 0:02:42]}  Qb4 {[%clk 0:01:31]} 24. Rb1 {[%clk 0:02:36]}  Qa3 {[%clk 0:01:31]} 25. Nb5 {[%clk 0:02:27]}  Qa2 {[%clk 0:01:29]} 26. Qxa2 {[%clk 0:02:27]}  Bxa2 {[%clk 0:01:30]} 27. Ra1 {[%clk 0:02:26]}  Bb3 {[%clk 0:01:26]} 28. Nxd6 {[%clk 0:02:26]}  Ba5 {[%clk 0:01:26]} 29. Ne4 {[%clk 0:02:22]}  Ra8 {[%clk 0:01:21]} 30. f3 {[%clk 0:02:18]}  Kg8 {[%clk 0:01:07]} 31. Kf2 {[%clk 0:02:16]}  h6 {[%clk 0:01:01]} 32. h4 {[%clk 0:02:16]}  Kh7 {[%clk 0:00:59]} 33. h5 {[%clk 0:02:16]}  Kg8 {[%clk 0:00:58]} 34. g4 {[%clk 0:02:16]}  Rc8 {[%clk 0:00:41]} 35. Rc1 {[%clk 0:02:13]}  Rxc1 {[%clk 0:00:36]} 36. Bxc1 {[%clk 0:02:14]}  Bxa4 {[%clk 0:00:37]} 37. Bb2 {[%clk 0:02:14]}  Bb6+ {[%clk 0:00:35]} 38. Kg2 {[%clk 0:02:09]}  Bd4 {[%clk 0:00:35]} 39. Bxd4 {[%clk 0:02:06]}  exd4 {[%clk 0:00:34]} 40. Kf2 {[%clk 0:02:06]}  Kf7 {[%clk 0:00:33]} 41. Ke2 {[%clk 0:02:02]}  Bb5+ {[%clk 0:00:32]} 42. Kd2 {[%clk 0:02:02]}  Ke6 {[%clk 0:00:31]} 43. f4 {[%clk 0:02:02]}  Kd5 {[%clk 0:00:29]} 44. Ng3 {[%clk 0:02:02]}  Bd7 {[%clk 0:00:28]} 45. g5 {[%clk 0:02:01]}  Bg4 {[%clk 0:00:26]} 46. Kd3 {[%clk 0:01:56]}  Bf3 {[%clk 0:00:22]} 47. Kd2 {[%clk 0:01:52]}  Be4 {[%clk 0:00:19]} 48. gxh6 {[%clk 0:01:49]}  gxh6 {[%clk 0:00:19]} 49. f5 {[%clk 0:01:49]}  Bf3 {[%clk 0:00:18]} 50. f6 {[%clk 0:01:48]}  Ke6 {[%clk 0:00:17]} 51. Nf5 {[%clk 0:01:44]}  Kxf6 {[%clk 0:00:04]} 52. Nxd4 {[%clk 0:01:42]}  Bxh5 {[%clk 0:00:04]} 53. Ke3 {[%clk 0:01:42]}  Ke5 {[%clk 0:00:02]} 54. Nf3+ {[%clk 0:01:42]}  Kf5 {[%clk 0:00:03]} 55. Kf2 {[%clk 0:01:41]}  Kf4 {[%clk 0:00:03]} 56. Ng1 {[%clk 0:01:41]}  Bg4 {[%clk 0:00:03]} 57. Kg2 {[%clk 0:01:41]}  h5 {[%clk 0:00:03]} 58. Nh3+ {[%clk 0:01:42]}  Kf5 {[%clk 0:00:03]} 59. Nf2 {[%clk 0:01:41]}  Be2 {[%clk 0:00:03]} 60. Kg3 {[%clk 0:01:41]}  Kg5 {[%clk 0:00:03]} 61. Nh3+ {[%clk 0:01:41]}  Kf5 {[%clk 0:00:02]} 62. Nf4 {[%clk 0:01:41]}  Bd1 {[%clk 0:00:01]} 63. Nxh5 {[%clk 0:01:41]} 1/2-1/2


[Site "https://www.chess.com"]

[Event "Titled Tuesday Blitz June 21 Early 2022"]
[White "Ianov, Viktor"]
[Black "Skliarov, Viktor"]
[WhiteFideId "14102730"]
[BlackFideId "14106736"]
[WhiteElo "2152"]
[BlackElo "2229"]
[Result "0-1"]
[Round "10"]
[TimeControl "180+1"]
[Date "2022.06.21"]
[WhiteClock "0:02:00"]
[BlackClock "0:00:51"]

1. Nf3 {[%clk 0:03:00]}  g6 {[%clk 0:02:59]} 2. g3 {[%clk 0:03:00]}  Bg7 {[%clk 0:02:59]} 3. Bg2 {[%clk 0:03:00]}  Nf6 {[%clk 0:03:00]} 4. b3 {[%clk 0:02:59]}  O-O {[%clk 0:03:00]} 5. Bb2 {[%clk 0:02:59]}  c5 {[%clk 0:03:01]} 6. c4 {[%clk 0:02:59]}  Nc6 {[%clk 0:03:01]} 7. Nc3 {[%clk 0:02:59]}  d5 {[%clk 0:03:00]} 8. Nxd5 {[%clk 0:02:59]}  Nxd5 {[%clk 0:03:01]} 9. Bxg7 {[%clk 0:02:58]}  Kxg7 {[%clk 0:03:01]} 10. cxd5 {[%clk 0:02:58]}  Qxd5 {[%clk 0:03:02]} 11. O-O {[%clk 0:02:57]}  b6 {[%clk 0:02:40]} 12. Rc1 {[%clk 0:02:56]}  Bb7 {[%clk 0:02:39]} 13. d3 {[%clk 0:02:54]}  Rad8 {[%clk 0:02:30]} 14. Qd2 {[%clk 0:02:54]}  Nd4 {[%clk 0:02:18]} 15. Ne1 {[%clk 0:02:52]}  Qd7 {[%clk 0:02:15]} 16. Bxb7 {[%clk 0:02:47]}  Qxb7 {[%clk 0:02:16]} 17. Qb2 {[%clk 0:02:45]}  f6 {[%clk 0:02:02]} 18. Ng2 {[%clk 0:02:44]}  e5 {[%clk 0:01:57]} 19. Ne3 {[%clk 0:02:41]}  e4 {[%clk 0:01:51]} 20. Rfd1 {[%clk 0:02:34]}  exd3 {[%clk 0:01:38]} 21. Rxd3 {[%clk 0:02:34]}  Nf3+ {[%clk 0:01:38]} 22. Kf1 {[%clk 0:02:23]}  Nxh2+ {[%clk 0:01:33]} 23. Kg1 {[%clk 0:02:23]}  Nf3+ {[%clk 0:01:29]} 24. Kf1 {[%clk 0:02:23]}  Rxd3 {[%clk 0:01:19]} 25. exd3 {[%clk 0:02:23]}  Nd4 {[%clk 0:01:19]} 26. Kg1 {[%clk 0:02:19]}  Re8 {[%clk 0:01:17]} 27. b4 {[%clk 0:02:16]}  Nf3+ {[%clk 0:01:02]} 28. Kf1 {[%clk 0:02:15]}  Ne5 {[%clk 0:01:03]} 29. Qc3 {[%clk 0:02:04]}  Qh1+ {[%clk 0:00:58]} 30. Ke2 {[%clk 0:02:04]}  Qf3+ {[%clk 0:00:59]} 31. Kf1 {[%clk 0:02:00]}  Ng4 {[%clk 0:00:51]} 0-1


[Site "https://www.chess.com"]

[Event "Titled Tuesday Blitz June 21 Early 2022"]
[White "Itkis, Boris"]
[Black "Reprintsev, Alexander"]
[WhiteFideId "1209167"]
[BlackFideId "14100541"]
[WhiteElo "2207"]
[BlackElo "2108"]
[Result "0-1"]
[Round "10"]
[TimeControl "180+1"]
[Date "2022.06.22"]
[WhiteClock "0:00:19"]
[BlackClock "0:00:32"]

1. Nf3 {[%clk 0:02:59]}  d5 {[%clk 0:02:59]} 2. b3 {[%clk 0:02:57]}  Bf5 {[%clk 0:02:55]} 3. Bb2 {[%clk 0:02:54]}  e6 {[%clk 0:02:56]} 4. e3 {[%clk 0:02:54]}  Nf6 {[%clk 0:02:54]} 5. d4 {[%clk 0:02:54]}  Be7 {[%clk 0:02:52]} 6. Nbd2 {[%clk 0:02:52]}  O-O {[%clk 0:02:51]} 7. Nh4 {[%clk 0:02:51]}  Bg4 {[%clk 0:02:50]} 8. Be2 {[%clk 0:02:47]}  Bxe2 {[%clk 0:02:49]} 9. Qxe2 {[%clk 0:02:48]}  a5 {[%clk 0:02:47]} 10. Nhf3 {[%clk 0:02:40]}  a4 {[%clk 0:02:46]} 11. Ne5 {[%clk 0:02:30]}  Nbd7 {[%clk 0:02:25]} 12. f4 {[%clk 0:02:25]}  Bb4 {[%clk 0:02:20]} 13. c3 {[%clk 0:02:19]}  a3 {[%clk 0:02:20]} 14. cxb4 {[%clk 0:02:08]}  axb2 {[%clk 0:02:20]} 15. Rb1 {[%clk 0:02:08]}  Rxa2 {[%clk 0:02:19]} 16. g4 {[%clk 0:02:09]}  Qe7 {[%clk 0:02:00]} 17. g5 {[%clk 0:02:01]}  Ne8 {[%clk 0:01:40]} 18. h4 {[%clk 0:01:55]}  Nxe5 {[%clk 0:01:37]} 19. fxe5 {[%clk 0:01:54]}  Qxb4 {[%clk 0:01:37]} 20. O-O {[%clk 0:01:50]}  c5 {[%clk 0:01:32]} 21. Qd3 {[%clk 0:01:47]}  Nc7 {[%clk 0:01:26]} 22. h5 {[%clk 0:01:32]}  Qb5 {[%clk 0:01:23]} 23. Qc3 {[%clk 0:01:27]}  Qe2 {[%clk 0:01:17]} 24. h6 {[%clk 0:01:23]}  Qg4+ {[%clk 0:01:14]} 25. Kf2 {[%clk 0:01:23]}  Qh4+ {[%clk 0:01:11]} 26. Ke2 {[%clk 0:01:20]}  cxd4 {[%clk 0:01:08]} 27. exd4 {[%clk 0:01:17]}  Nb5 {[%clk 0:01:05]} 28. Qc5 {[%clk 0:01:01]}  Nxd4+ {[%clk 0:01:04]} 29. Kd3 {[%clk 0:01:01]}  Nf5 {[%clk 0:01:02]} 30. hxg7 {[%clk 0:00:52]}  Kxg7 {[%clk 0:00:59]} 31. Rxf5 {[%clk 0:00:48]}  exf5 {[%clk 0:00:58]} 32. Qe7 {[%clk 0:00:49]}  Qg3+ {[%clk 0:00:46]} 33. Ke2 {[%clk 0:00:44]}  f4 {[%clk 0:00:36]} 34. Qf6+ {[%clk 0:00:30]}  Kg8 {[%clk 0:00:35]} 35. Rf1 {[%clk 0:00:18]}  Qe3+ {[%clk 0:00:33]} 36. Kd1 {[%clk 0:00:18]}  b1=Q+ {[%clk 0:00:31]} 37. Nxb1 {[%clk 0:00:18]}  Qe2+ {[%clk 0:00:31]} 38. Kc1 {[%clk 0:00:19]}  Qc2# {[%clk 0:00:32]} 0-1


[Site "https://www.chess.com"]

[Event "Titled Tuesday Blitz June 21 Early 2022"]
[White "Jeet, Jain"]
[Black "Horak, Martin"]
[WhiteFideId "5073022"]
[BlackFideId "367095"]
[WhiteElo "2055"]
[BlackElo "1997"]
[Result "1/2-1/2"]
[Round "10"]
[TimeControl "180+1"]
[Date "2022.06.22"]
[WhiteClock "0:02:06"]
[BlackClock "0:01:10"]

1. c4 {[%clk 0:03:00]}  b6 {[%clk 0:02:52]} 2. g3 {[%clk 0:02:57]}  Bb7 {[%clk 0:02:53]} 3. Nf3 {[%clk 0:02:58]}  Nf6 {[%clk 0:02:50]} 4. Bg2 {[%clk 0:02:58]}  e6 {[%clk 0:02:50]} 5. O-O {[%clk 0:02:59]}  Be7 {[%clk 0:02:50]} 6. b3 {[%clk 0:02:59]}  O-O {[%clk 0:02:51]} 7. Bb2 {[%clk 0:03:00]}  c5 {[%clk 0:02:51]} 8. d4 {[%clk 0:03:00]}  cxd4 {[%clk 0:02:52]} 9. Qxd4 {[%clk 0:03:00]}  d6 {[%clk 0:02:50]} 10. Nc3 {[%clk 0:02:59]}  a6 {[%clk 0:02:50]} 11. e4 {[%clk 0:02:58]}  Nbd7 {[%clk 0:02:50]} 12. Rfe1 {[%clk 0:02:57]}  Qc7 {[%clk 0:02:50]} 13. Rad1 {[%clk 0:02:58]}  Rfd8 {[%clk 0:02:49]} 14. a4 {[%clk 0:02:58]}  Rac8 {[%clk 0:02:44]} 15. Nd2 {[%clk 0:02:55]}  Bf8 {[%clk 0:02:33]} 16. h3 {[%clk 0:02:55]}  Nc5 {[%clk 0:02:13]} 17. Kh2 {[%clk 0:02:54]}  Qb8 {[%clk 0:02:11]} 18. b4 {[%clk 0:02:53]}  Ncd7 {[%clk 0:02:10]} 19. f4 {[%clk 0:02:53]}  e5 {[%clk 0:02:04]} 20. Qe3 {[%clk 0:02:50]}  d5 {[%clk 0:01:54]} 21. Nxd5 {[%clk 0:02:35]}  Bxd5 {[%clk 0:01:45]} 22. cxd5 {[%clk 0:02:30]}  Bxb4 {[%clk 0:01:44]} 23. fxe5 {[%clk 0:02:25]}  Nxe5 {[%clk 0:01:42]} 24. Bxe5 {[%clk 0:02:25]}  Qxe5 {[%clk 0:01:42]} 25. Nf3 {[%clk 0:02:25]}  Qh5 {[%clk 0:01:36]} 26. Qxb6 {[%clk 0:02:17]}  Ng4+ {[%clk 0:01:33]} 27. Kh1 {[%clk 0:02:11]}  Nf2+ {[%clk 0:01:32]} 28. Kh2 {[%clk 0:02:11]}  Bc5 {[%clk 0:01:12]} 29. Qxa6 {[%clk 0:02:05]}  Ng4+ {[%clk 0:01:09]} 30. Kh1 {[%clk 0:02:05]}  Nf2+ {[%clk 0:01:09]} 31. Kh2 {[%clk 0:02:05]}  Ng4+ {[%clk 0:01:10]} 32. Kh1 {[%clk 0:02:05]}  Nf2+ {[%clk 0:01:10]} 33. Kh2 {[%clk 0:02:06]} 1/2-1/2


[Site "https://www.chess.com"]